[Event "Caplin Hastings Masters 2023-24"]
[Site "Hastings"]
[Date "2023.12.29"]
[Round "2.1"]
[White "Waldhausen Gordon, Frederick"]
[Black "Lagarde, Maxime"]
[Result "0-1"]
[ECO "A58"]
[WhiteElo "2338"]
[BlackElo "2640"]
[Annotator "ChessBase"]
[PlyCount "64"]
[EventDate "2023.12.18"]
[EventType "swiss"]
[EventCountry "ENG"]
[SourceTitle "playchess.com"]
[Source "ChessBase"]
[SourceQuality "1"]
[TimeControl "40/6000+30:3000+30"]

1. d4 {[%emt 0:00:01]} Nf6 {[%emt 0:01:31]} 2. c4 {[%emt 0:00:25]} c5 {[%emt 0:00:56]} 3. d5 {[%emt 0:00:06]} b5 {[%emt 0:00:13]} 4. cxb5 {[%emt 0:00:05]} a6 {[%emt 0:00:04]} 5. bxa6 {[%emt 0:00:05]} e6 {[%emt 0:00:54]} 6. Nc3 {[%emt 0:01:07]} exd5 {[%emt 0:00:05]} 7. Nxd5 {[%emt 0:00:31]} Be7 {[%emt 0:00:10]} 8. Nf3 {[%emt 0:01:29]} Nxd5 {[%emt 0:03:36]} 9. Qxd5 {[%emt 0:00:25]} Rxa6 {[%emt 0:03:01]} 10. e3 {[%emt 0:04:09]} Nc6 {[%emt 0:08:53]} 11. Ne5 {[%emt 0:09:07]} Nxe5 {[%emt 0:05:54]} 12. Bxa6 {[%emt 0:01:16]} Bxa6 {[%emt 0:00:13]} 13. Qxe5 {[%emt 0:00:06]} O-O {[%emt 0:00:27]} 14. f3 {[%emt 0:04:20]} d5 {[%emt 0:06:12]} 15. Kf2 {[%emt 0:04:20]} Bd6 {[%emt 0:21:11]} 16. Qh5 {[%emt 0:03:05]} g6 {[%emt 0:12:18]} 17. Qh6 {[%emt 0:17:56]} Re8 {[%emt 0:01:19]} 18. g3 {[%emt 0:06:14]} Re5 {[%emt 0:08:32]} 19. Qh4 {[%emt 0:03:10]} Qe8 {[%emt 0:01:35]} 20. a4 {[%emt 0:06:10]} Rh5 {[%emt 0:07:32]} 21. Qf6 {[%emt 0:02:14]} Rf5 {[%emt 0:00:09]} 22. Qh4 {[%emt 0:10:35]} Qe6 {[%emt 0:03:08]} 23. a5 {[%emt 0:06:40]} Rxf3+ {[%emt 0:07:21]} 24. Kxf3 {[%emt 0:00:46]} Qf5+ {[%emt 0:00:04]} 25. Kg2 {[%emt 0:00:52]} Qc2+ {[%emt 0:00:11]} 26. Kh3 {[%emt 0:00:31]} Bc8+ {[%emt 0:00:41]} 27. g4 {[%emt 0:00:15]} Qe2 {[%emt 0:00:38]} 28. Qd8+ {[%emt 0:02:56]} Kg7 {[%emt 0:00:20]} 29. Qxc8 {[%emt 0:00:08]} Qf3+ {[%emt 0:00:15]} 30. Kh4 {[%emt 0:00:09]} Bg3+ {[%emt 0:00:49]} 31. hxg3 {[%emt 0:00:33]} Qxh1+ {[%emt 0:00:08]} 32. Kg5 {[%emt 0:00:03]} Qh6# {[%emt 0:00:15]} 0-1

[Event "Caplin Hastings Masters 2023-24"]
[Site "Hastings"]
[Date "2023.12.29"]
[Round "2.2"]
[White "Gupta, Abhijeet"]
[Black "Vestby-Ellingsen, Mads"]
[Result "1-0"]
[ECO "A09"]
[WhiteElo "2596"]
[BlackElo "2329"]
[Annotator "ChessBase"]
[PlyCount "77"]
[EventDate "2023.12.18"]
[EventType "swiss"]
[EventCountry "ENG"]
[SourceTitle "playchess.com"]
[Source "ChessBase"]
[SourceQuality "1"]
[TimeControl "40/6000+30:3000+30"]

1. Nf3 {[%emt 0:00:21]} d5 {[%emt 0:01:50]} 2. c4 {[%emt 0:00:20]} d4 {[%emt 0:04:21]} 3. b4 {[%emt 0:00:10]} c5 {[%emt 0:03:34]} 4. e3 {[%emt 0:00:40]} dxe3 {[%emt 0:05:00]} 5. fxe3 {[%emt 0:00:04]} cxb4 {[%emt 0:00:12]} 6. d4 {[%emt 0:00:55]} Nd7 {[%emt 0:03:38]} 7. Bd3 {[%emt 0:04:40]} Ngf6 {[%emt 0:01:24]} 8. O-O {[%emt 0:00:27]} e6 {[%emt 0:02:05]} 9. c5 {[%emt 0:04:32]} Be7 {[%emt 0:10:41]} 10. a3 {[%emt 0:00:21]} bxa3 {[%emt 0:15:02]} 11. Nxa3 {[%emt 0:00:59]} O-O {[%emt 0:00:13]} 12. Qc2 {[%emt 0:00:13]} Qc7 {[%emt 0:06:13]} 13. Nb5 {[%emt 0:01:50]} Qb8 {[%emt 0:00:16]} 14. Ba3 {[%emt 0:02:09]} Re8 {[%emt 0:02:33]} 15. Ng5 {[%emt 0:03:06]} Nf8 {[%emt 0:12:34]} 16. Nd6 {[%emt 0:01:33]} Bxd6 {[%emt 0:00:16]} 17. cxd6 {[%emt 0:00:04]} b5 {[%emt 0:13:14]} 18. Rab1 {[%emt 0:00:25]} Bd7 {[%emt 0:00:32]} 19. e4 {[%emt 0:00:40]} Qc8 {[%emt 0:03:09]} 20. Qb3 {[%emt 0:00:49]} h6 {[%emt 0:01:33]} 21. Nxf7 {[%emt 0:01:24]} Kxf7 {[%emt 0:02:23]} 22. e5 {[%emt 0:00:06]} Qb7 {[%emt 0:02:33]} 23. exf6 {[%emt 0:01:50]} gxf6 {[%emt 0:01:08]} 24. Be2 {[%emt 0:03:08]} Qd5 {[%emt 0:02:29]} 25. Qh3 {[%emt 0:00:21]} Ng6 {[%emt 0:04:15]} 26. Kh1 {[%emt 0:00:53]} Rac8 {[%emt 0:01:40]} 27. Qxh6 {[%emt 0:03:22]} Rh8 {[%emt 0:02:13]} 28. Rxf6+ {[%emt 0:00:07]} Kxf6 {[%emt 0:00:08]} 29. Rf1+ {[%emt 0:00:03]} Qf5 {[%emt 0:00:09]} 30. Qd2 {[%emt 0:02:50]} Kg7 {[%emt 0:04:22]} 31. Rxf5 {[%emt 0:00:22]} exf5 {[%emt 0:00:09]} 32. d5 {[%emt 0:00:25]} Rh4 {[%emt 0:04:08]} 33. Bb2+ {[%emt 0:01:09]} Kh7 {[%emt 0:00:23]} 34. g3 {[%emt 0:00:29]} Re4 {[%emt 0:02:28]} 35. Qg5 {[%emt 0:01:02]} Ne5 {[%emt 0:00:13]} 36. Qe7+ {[%emt 0:01:37]} Kg6 {[%emt 0:00:13]} 37. Bxe5 {[%emt 0:02:57]} Rxe2 {[%emt 0:00:09]} 38. Qg7+ {[%emt 0:01:38]} Kh5 {[%emt 0:00:08]} 39. Bf4 {[%emt 0:01:33]} 1-0

[Event "Caplin Hastings Masters 2023-24"]
[Site "Hastings"]
[Date "2023.12.29"]
[Round "2.3"]
[White "Rudd, Jack"]
[Black "Zhang, Pengxiang"]
[Result "0-1"]
[ECO "D87"]
[WhiteElo "2314"]
[BlackElo "2558"]
[Annotator "ChessBase"]
[PlyCount "46"]
[EventDate "2023.12.18"]
[EventType "swiss"]
[EventCountry "ENG"]
[SourceTitle "playchess.com"]
[Source "ChessBase"]
[SourceQuality "1"]
[TimeControl "40/6000+30:3000+30"]

1. d4 {[%emt 0:00:01]} Nf6 {[%emt 0:00:07]} 2. c4 {[%emt 0:00:05]} g6 {[%emt 0:00:06]} 3. Nc3 {[%emt 0:00:04]} d5 {[%emt 0:00:03]} 4. cxd5 {[%emt 0:00:14]} Nxd5 {[%emt 0:00:05]} 5. e4 {[%emt 0:00:05]} Nxc3 {[%emt 0:00:04]} 6. bxc3 {[%emt 0:00:06]} Bg7 {[%emt 0:00:02]} 7. Bc4 {[%emt 0:00:08]} c5 {[%emt 0:00:10]} 8. Ne2 {[%emt 0:00:05]} Nc6 {[%emt 0:00:04]} 9. Be3 {[%emt 0:00:05]} O-O {[%emt 0:00:25]} 10. O-O {[%emt 0:00:05]} b6 {[%emt 0:00:10]} 11. dxc5 {[%emt 0:01:29]} Qc7 {[%emt 0:00:31]} 12. cxb6 {[%emt 0:00:22]} axb6 {[%emt 0:00:06]} 13. Rb1 {[%emt 0:00:11]} Ne5 {[%emt 0:10:54]} 14. Bd5 {[%emt 0:01:47]} Rb8 {[%emt 0:01:21]} 15. Qa4 {[%emt 0:04:56]} e6 {[%emt 0:05:09]} 16. Bb3 {[%emt 0:00:24]} Bd7 {[%emt 0:11:13]} 17. Qb4 {[%emt 0:02:18]} Rfd8 {[%emt 0:09:45]} 18. c4 {[%emt 0:02:24]} b5 {[%emt 0:06:40]} 19. cxb5 {[%emt 0:02:11]} Bxb5 {[%emt 0:02:31]} 20. Qe1 {[%emt 0:03:03]} Nd3 {[%emt 0:05:48]} 21. Qd2 {[%emt 0:00:08]} Nxf2 {[%emt 0:09:42]} 22. Qxd8+ {[%emt 0:01:21]} Qxd8 {[%emt 0:01:54]} 23. Rxf2 {[%emt 0:00:07]} Qd3 {[%emt 0:00:48]} 0-1

[Event "Caplin Hastings Masters 2023-24"]
[Site "Hastings"]
[Date "2023.12.29"]
[Round "2.4"]
[White "Jacobson, Brandon"]
[Black "Lux, Hugo de Melo"]
[Result "1-0"]
[ECO "D12"]
[WhiteElo "2538"]
[BlackElo "2311"]
[Annotator "ChessBase"]
[PlyCount "95"]
[EventDate "2023.12.18"]
[EventType "swiss"]
[EventCountry "ENG"]
[SourceTitle "playchess.com"]
[Source "ChessBase"]
[SourceQuality "1"]
[TimeControl "40/6000+30:3000+30"]

1. d4 {[%emt 0:00:02]} d5 {[%emt 0:01:06]} 2. c4 {[%emt 0:00:17]} c6 {[%emt 0:00:07]} 3. Nf3 {[%emt 0:00:53]} Nf6 {[%emt 0:00:13]} 4. e3 {[%emt 0:00:06]} Bf5 {[%emt 0:00:06]} 5. Nc3 {[%emt 0:00:24]} e6 {[%emt 0:00:08]} 6. Nh4 {[%emt 0:00:19]} Be4 {[%emt 0:00:07]} 7. f3 {[%emt 0:00:07]} Bg6 {[%emt 0:00:03]} 8. Qb3 {[%emt 0:01:17]} Qc7 {[%emt 0:00:13]} 9. Bd2 {[%emt 0:00:06]} Be7 {[%emt 0:00:06]} 10. O-O-O {[%emt 0:00:46]} dxc4 {[%emt 0:04:41]} 11. Bxc4 {[%emt 0:02:29]} b5 {[%emt 0:00:17]} 12. Be2 {[%emt 0:00:07]} a6 {[%emt 0:00:06]} 13. Nxg6 {[%emt 0:00:39]} hxg6 {[%emt 0:00:07]} 14. Ne4 {[%emt 0:00:06]} Nxe4 {[%emt 0:00:04]} 15. fxe4 {[%emt 0:00:08]} c5 {[%emt 0:00:08]} 16. Kb1 {[%emt 0:01:03]} c4 {[%emt 0:15:05]} 17. Qc2 {[%emt 0:00:07]} Nc6 {[%emt 0:00:02]} 18. e5 {[%emt 0:13:22]} Rc8 {[%emt 0:00:55]} 19. h4 {[%emt 0:09:12]} Bb4 {[%emt 0:41:15]} 20. Bc1 {[%emt 0:29:03]} Be7 {[%emt 0:16:17]} 21. a3 {[%emt 0:15:02]} Na5 {[%emt 0:03:45]} 22. h5 {[%emt 0:07:50]} g5 {[%emt 0:00:25]} 23. d5 {[%emt 0:01:06]} exd5 {[%emt 0:09:08]} 24. e6 {[%emt 0:02:06]} Rh6 {[%emt 0:05:00]} 25. exf7+ {[%emt 0:12:16]} Kxf7 {[%emt 0:00:44]} 26. Rxd5 {[%emt 0:03:25]} Kg8 {[%emt 0:04:05]} 27. Bg4 {[%emt 0:02:26]} Rf8 {[%emt 0:00:51]} 28. Rd7 {[%emt 0:01:26]} Qe5 {[%emt 0:00:54]} 29. Bd2 {[%emt 0:01:00]} Nc6 {[%emt 0:03:17]} 30. Bc3 {[%emt 0:01:25]} Qg3 {[%emt 0:00:26]} 31. Qe4 {[%emt 0:02:16]} Bf6 {[%emt 0:04:23]} 32. Bxf6 {[%emt 0:01:14]} Rhxf6 {[%emt 0:01:25]} 33. h6 {[%emt 0:00:45]} g6 {[%emt 0:00:57]} 34. Be6+ {[%emt 0:02:22]} Kh8 {[%emt 0:00:01]} 35. Qxc6 {[%emt 0:00:08]} Qxe3 {[%emt 0:00:48]} 36. Rh7+ {[%emt 0:01:21]} Kxh7 {[%emt 0:00:02]} 37. Qd7+ {[%emt 0:00:55]} R8f7 {[%emt 0:00:01]} 38. Bxf7 {[%emt 0:00:05]} Qd3+ {[%emt 0:01:33]} 39. Qxd3 {[%emt 0:00:05]} cxd3 {[%emt 0:00:03]} 40. Bd5 {[%emt 0:00:08]} Rd6 {[%emt 0:00:43]} 41. Be4 {[%emt 0:51:27]} Rd4 {[%emt 0:50:06]} 42. Bxg6+ {[%emt 0:00:24]} Kxg6 {[%emt 0:01:14]} 43. h7 {[%emt 0:00:05]} d2 {[%emt 0:00:28]} 44. h8=Q {[%emt 0:00:06]} d1=Q+ {[%emt 0:00:00]} 45. Rxd1 {[%emt 0:00:00]} Rxd1+ {[%emt 0:00:00]} 46. Kc2 {[%emt 0:00:00]} Rd6 {[%emt 0:00:00]} 47. Qe8+ {[%emt 0:00:00]} Kf6 {[%emt 0:00:00]} 48. Qf8+ {[%emt 0:00:00]} 1-0

[Event "Caplin Hastings Masters 2023-24"]
[Site "Hastings"]
[Date "2023.12.29"]
[Round "2.5"]
[White "Bozinakis, Pavlos"]
[Black "Edouard, Romain"]
[Result "1/2-1/2"]
[ECO "B30"]
[WhiteElo "2274"]
[BlackElo "2527"]
[Annotator "ChessBase"]
[PlyCount "42"]
[EventDate "2023.12.18"]
[EventType "swiss"]
[EventCountry "ENG"]
[SourceTitle "playchess.com"]
[Source "ChessBase"]
[SourceQuality "1"]
[TimeControl "40/6000+30:3000+30"]

1. e4 {[%emt 0:00:08]} c5 {[%emt 0:00:03]} 2. Nf3 {[%emt 0:00:58]} Nc6 {[%emt 0:00:07]} 3. Bb5 {[%emt 0:00:33]} e6 {[%emt 0:00:26]} 4. O-O {[%emt 0:03:45]} Nge7 {[%emt 0:00:03]} 5. c3 {[%emt 0:00:28]} a6 {[%emt 0:01:37]} 6. Ba4 {[%emt 0:00:18]} d5 {[%emt 0:02:09]} 7. exd5 {[%emt 0:00:51]} Qxd5 {[%emt 0:00:04]} 8. d4 {[%emt 0:02:50]} b5 {[%emt 0:00:13]} 9. Bc2 {[%emt 0:03:08]} Bb7 {[%emt 0:00:33]} 10. Re1 {[%emt 0:05:17]} Rd8 {[%emt 0:11:41]} 11. Be4 {[%emt 0:06:44]} Qd7 {[%emt 0:00:47]} 12. Nbd2 {[%emt 0:11:23]} cxd4 {[%emt 0:01:45]} 13. Nb3 {[%emt 0:08:53]} Nd5 {[%emt 0:03:38]} 14. cxd4 {[%emt 0:01:13]} h6 {[%emt 0:05:46]} 15. Bd2 {[%emt 0:12:34]} b4 {[%emt 0:04:26]} 16. Rc1 {[%emt 0:00:58]} Be7 {[%emt 0:03:05]} 17. Nc5 {[%emt 0:25:10]} Bxc5 {[%emt 0:02:08]} 18. Rxc5 {[%emt 0:00:08]} Nde7 {[%emt 0:00:42]} 19. Bxc6 {[%emt 0:09:56]} Bxc6 {[%emt 0:02:35]} 20. Bxb4 {[%emt 0:00:30]} Qb7 {[%emt 0:02:20]} 21. Ba3 {[%emt 0:03:21]} O-O {[%emt 0:06:45]} 1/2-1/2

[Event "Caplin Hastings Masters 2023-24"]
[Site "Hastings"]
[Date "2023.12.29"]
[Round "2.6"]
[White "Laurent-Paoli, Pierre"]
[Black "Beaumont, Chris R"]
[Result "1-0"]
[ECO "A69"]
[WhiteElo "2524"]
[BlackElo "2236"]
[Annotator "ChessBase"]
[PlyCount "137"]
[EventDate "2023.12.18"]
[EventType "swiss"]
[EventCountry "ENG"]
[SourceTitle "playchess.com"]
[Source "ChessBase"]
[SourceQuality "1"]
[TimeControl "40/6000+30:3000+30"]

1. e4 {[%emt 0:00:43]} g6 {[%emt 0:04:01]} 2. d4 {[%emt 0:01:13]} d6 {[%emt 0:00:28]} 3. c4 {[%emt 0:03:24]} Nf6 {[%emt 0:01:16]} 4. Nc3 {[%emt 0:00:11]} Bg7 {[%emt 0:00:13]} 5. f4 {[%emt 0:04:56]} O-O {[%emt 0:04:30]} 6. Nf3 {[%emt 0:00:12]} c5 {[%emt 0:00:32]} 7. d5 {[%emt 0:00:07]} e6 {[%emt 0:00:12]} 8. Be2 {[%emt 0:00:23]} exd5 {[%emt 0:00:19]} 9. cxd5 {[%emt 0:00:06]} Nbd7 {[%emt 0:00:58]} 10. O-O {[%emt 0:00:17]} Re8 {[%emt 0:00:51]} 11. Qc2 {[%emt 0:00:39]} Qc7 {[%emt 0:01:24]} 12. Kh1 {[%emt 0:08:26]} a6 {[%emt 0:01:07]} 13. a4 {[%emt 0:01:38]} Rb8 {[%emt 0:02:48]} 14. Nd2 {[%emt 0:05:07]} c4 {[%emt 0:02:24]} 15. Nxc4 {[%emt 0:17:02]} b5 {[%emt 0:01:24]} 16. axb5 {[%emt 0:00:10]} axb5 {[%emt 0:00:08]} 17. Nxd6 {[%emt 0:00:15]} Qxd6 {[%emt 0:00:17]} 18. e5 {[%emt 0:02:46]} Qc7 {[%emt 0:01:04]} 19. d6 {[%emt 0:08:34]} Qc5 {[%emt 0:02:42]} 20. Qd3 {[%emt 0:06:11]} Nxe5 {[%emt 0:44:23]} 21. fxe5 {[%emt 0:01:12]} Rxe5 {[%emt 0:08:43]} 22. Bf4 {[%emt 0:04:54]} Bf5 {[%emt 0:03:08]} 23. Qg3 {[%emt 0:07:19]} Ree8 {[%emt 0:07:41]} 24. d7 {[%emt 0:02:37]} Nxd7 {[%emt 0:00:15]} 25. Bxb8 {[%emt 0:00:26]} Rxb8 {[%emt 0:00:15]} 26. Bg4 {[%emt 0:07:00]} Bxg4 {[%emt 0:05:54]} 27. Qxg4 {[%emt 0:00:06]} Ne5 {[%emt 0:00:24]} 28. Qe4 {[%emt 0:03:38]} Qc4 {[%emt 0:02:41]} 29. Rfd1 {[%emt 0:12:04]} Qxe4 {[%emt 0:02:32]} 30. Nxe4 {[%emt 0:00:01]} Nc4 {[%emt 0:00:25]} 31. Ra7 {[%emt 0:01:35]} Bxb2 {[%emt 0:00:52]} 32. Ng5 {[%emt 0:04:22]} Ne5 {[%emt 0:00:47]} 33. Rf1 {[%emt 0:00:57]} Bd4 {[%emt 0:05:34]} 34. Re7 {[%emt 0:01:11]} b4 {[%emt 0:03:21]} 35. Nxf7 {[%emt 0:01:18]} Nxf7 {[%emt 0:00:10]} 36. Rfxf7 {[%emt 0:00:32]} b3 {[%emt 0:00:15]} 37. Rb7 {[%emt 0:00:39]} Rxb7 {[%emt 0:00:19]} 38. Rxb7 {[%emt 0:00:03]} b2 {[%emt 0:00:07]} 39. g4 {[%emt 0:01:20]} Bf6 {[%emt 0:03:28]} 40. Kg2 {[%emt 0:00:31]} Be5 {[%emt 0:00:32]} 41. h3 {[%emt 0:51:03]} Bf6 {[%emt 0:50:07]} 42. Kf3 {[%emt 0:00:06]} Bc3 {[%emt 0:00:14]} 43. Ke4 {[%emt 0:01:23]} Bf6 {[%emt 0:00:15]} 44. Kd5 {[%emt 0:00:11]} Bc3 {[%emt 0:01:15]} 45. Ke6 {[%emt 0:00:32]} Kf8 {[%emt 0:00:51]} 46. h4 {[%emt 0:00:55]} Kg8 {[%emt 0:00:18]} 47. h5 {[%emt 0:00:15]} gxh5 {[%emt 0:00:00]} 48. gxh5 {[%emt 0:00:00]} h6 {[%emt 0:00:00]} 49. Kf5 {[%emt 0:00:00]} Kf8 {[%emt 0:00:00]} 50. Kg6 {[%emt 0:00:00]} Bd2 {[%emt 0:00:00]} 51. Rxb2 {[%emt 0:00:00]} Bc1 {[%emt 0:00:00]} 52. Rb7 {[%emt 0:00:00]} Bg5 {[%emt 0:00:00]} 53. Ra7 {[%emt 0:00:00]} Bc1 {[%emt 0:00:00]} 54. Rf7+ {[%emt 0:00:00]} Ke8 {[%emt 0:00:00]} 55. Rf1 {[%emt 0:00:00]} Bg5 {[%emt 0:00:00]} 56. Kg7 {[%emt 0:00:00]} Ke7 {[%emt 0:00:00]} 57. Re1+ {[%emt 0:00:00]} Kd6 {[%emt 0:00:00]} 58. Kg6 {[%emt 0:00:00]} Kd7 {[%emt 0:00:00]} 59. Kf7 {[%emt 0:00:00]} Kd6 {[%emt 0:00:00]} 60. Re8 {[%emt 0:00:00]} Bf4 {[%emt 0:00:00]} 61. Re6+ {[%emt 0:00:00]} Kd5 {[%emt 0:00:00]} 62. Kf6 {[%emt 0:00:00]} Bg5+ {[%emt 0:00:00]} 63. Kf5 {[%emt 0:00:00]} Bc1 {[%emt 0:00:00]} 64. Re1 {[%emt 0:00:00]} Bg5 {[%emt 0:00:00]} 65. Rd1+ {[%emt 0:00:00]} Kc6 {[%emt 0:00:00]} 66. Rg1 {[%emt 0:00:00]} Be3 {[%emt 0:00:00]} 67. Rg3 {[%emt 0:00:00]} Bd2 {[%emt 0:00:00]} 68. Rg2 {[%emt 0:00:00]} Be3 {[%emt 0:00:15]} 69. Ke4 {[%emt 0:00:00]} 1-0

[Event "Caplin Hastings Masters 2023-24"]
[Site "Hastings"]
[Date "2023.12.29"]
[Round "2.7"]
[White "Nielsen, Andre"]
[Black "Mikhalevski, Victor"]
[Result "1-0"]
[ECO "B81"]
[WhiteElo "2239"]
[BlackElo "2524"]
[Annotator "ChessBase"]
[PlyCount "91"]
[EventDate "2023.12.18"]
[EventType "swiss"]
[EventCountry "ENG"]
[SourceTitle "playchess.com"]
[Source "ChessBase"]
[SourceQuality "1"]
[TimeControl "40/6000+30:3000+30"]

1. e4 {[%emt 0:00:05]} c5 {[%emt 0:00:46]} 2. Nf3 {[%emt 0:00:47]} e6 {[%emt 0:00:20]} 3. d4 {[%emt 0:00:19]} cxd4 {[%emt 0:00:06]} 4. Nxd4 {[%emt 0:00:10]} Nf6 {[%emt 0:00:06]} 5. Nc3 {[%emt 0:00:37]} d6 {[%emt 0:00:10]} 6. g4 {[%emt 0:03:07]} h6 {[%emt 0:00:11]} 7. h4 {[%emt 0:00:24]} Nc6 {[%emt 0:00:32]} 8. Be2 {[%emt 0:06:42]} d5 {[%emt 0:01:51]} 9. exd5 {[%emt 0:13:10]} Nxd5 {[%emt 0:02:05]} 10. Nxd5 {[%emt 0:10:06]} exd5 {[%emt 0:04:08]} 11. Be3 {[%emt 0:03:19]} Be7 {[%emt 0:05:24]} 12. Qd2 {[%emt 0:01:53]} Ne5 {[%emt 0:06:06]} 13. O-O-O {[%emt 0:10:25]} Bxg4 {[%emt 0:17:47]} 14. Bxg4 {[%emt 0:03:40]} Nxg4 {[%emt 0:00:05]} 15. Nf5 {[%emt 0:01:23]} Nxe3 {[%emt 0:07:23]} 16. Qxe3 {[%emt 0:02:28]} Kf8 {[%emt 0:00:09]} 17. Rhg1 {[%emt 0:21:05]} Rc8 {[%emt 0:25:22]} 18. Rde1 {[%emt 0:13:49]} Bc5 {[%emt 0:03:31]} 19. Qe5 {[%emt 0:01:09]} Qf6 {[%emt 0:02:35]} 20. Qxf6 {[%emt 0:03:27]} gxf6 {[%emt 0:00:06]} 21. Rd1 {[%emt 0:00:29]} Bxf2 {[%emt 0:08:06]} 22. Rg2 {[%emt 0:00:45]} Bb6 {[%emt 0:01:52]} 23. Rxd5 {[%emt 0:00:13]} Rc5 {[%emt 0:02:21]} 24. Rxc5 {[%emt 0:01:14]} Bxc5 {[%emt 0:00:01]} 25. c3 {[%emt 0:03:10]} Rg8 {[%emt 0:02:24]} 26. Rxg8+ {[%emt 0:00:20]} Kxg8 {[%emt 0:00:06]} 27. b4 {[%emt 0:00:37]} Bg1 {[%emt 0:04:00]} 28. h5 {[%emt 0:00:28]} Kf8 {[%emt 0:04:23]} 29. Kc2 {[%emt 0:01:10]} Ke8 {[%emt 0:01:24]} 30. Kd3 {[%emt 0:01:22]} Kd7 {[%emt 0:01:02]} 31. Ke4 {[%emt 0:01:28]} Ke6 {[%emt 0:00:31]} 32. Nxh6 {[%emt 0:01:59]} f5+ {[%emt 0:00:13]} 33. Nxf5 {[%emt 0:00:11]} Kf6 {[%emt 0:00:36]} 34. h6 {[%emt 0:02:47]} Kg6 {[%emt 0:00:15]} 35. c4 {[%emt 0:00:44]} a5 {[%emt 0:07:27]} 36. bxa5 {[%emt 0:00:48]} Bc5 {[%emt 0:00:14]} 37. Kd5 {[%emt 0:01:27]} Bb4 {[%emt 0:00:08]} 38. a6 {[%emt 0:00:54]} bxa6 {[%emt 0:00:04]} 39. c5 {[%emt 0:00:33]} Ba5 {[%emt 0:00:47]} 40. a4 {[%emt 0:00:52]} Bc7 {[%emt 0:01:03]} 41. Kc6 {[%emt 0:10:19]} Be5 {[%emt 0:01:11]} 42. Nd6 {[%emt 0:00:37]} Bd4 {[%emt 0:09:59]} 43. Kd5 {[%emt 0:01:31]} Bc3 {[%emt 0:00:14]} 44. Nc4 {[%emt 0:00:44]} Bf6 {[%emt 0:00:22]} 45. c6 {[%emt 0:00:32]} Bd8 {[%emt 0:00:03]} 46. Ne5+ {[%emt 0:00:10]} 1-0

[Event "Caplin Hastings Masters 2023-24"]
[Site "Hastings"]
[Date "2023.12.29"]
[Round "2.8"]
[White "Boswell, Jacob Connor"]
[Black "Petrov, Martin"]
[Result "0-1"]
[ECO "E15"]
[WhiteElo "2235"]
[BlackElo "2501"]
[Annotator "ChessBase"]
[PlyCount "116"]
[EventDate "2023.12.18"]
[EventType "swiss"]
[EventCountry "ENG"]
[SourceTitle "playchess.com"]
[Source "ChessBase"]
[SourceQuality "1"]
[TimeControl "40/6000+30:3000+30"]

1. d4 {[%emt 0:00:02]} Nf6 {[%emt 0:00:11]} 2. c4 {[%emt 0:00:07]} e6 {[%emt 0:00:08]} 3. Nf3 {[%emt 0:00:05]} d5 {[%emt 0:03:12]} 4. g3 {[%emt 0:00:11]} Bb4+ {[%emt 0:00:05]} 5. Bd2 {[%emt 0:00:08]} Be7 {[%emt 0:00:05]} 6. Bg2 {[%emt 0:00:08]} O-O {[%emt 0:00:08]} 7. O-O {[%emt 0:00:28]} Nbd7 {[%emt 0:00:29]} 8. Qc2 {[%emt 0:03:04]} c6 {[%emt 0:02:07]} 9. Rd1 {[%emt 0:00:30]} b6 {[%emt 0:01:47]} 10. Bf4 {[%emt 0:02:50]} Ba6 {[%emt 0:00:17]} 11. b3 {[%emt 0:00:30]} Rc8 {[%emt 0:00:30]} 12. Nc3 {[%emt 0:01:41]} h6 {[%emt 0:00:42]} 13. e4 {[%emt 0:15:06]} dxc4 {[%emt 0:00:28]} 14. Nd2 {[%emt 0:03:42]} b5 {[%emt 0:00:44]} 15. bxc4 {[%emt 0:02:48]} bxc4 {[%emt 0:00:18]} 16. Qa4 {[%emt 0:11:26]} Bb5 {[%emt 0:01:38]} 17. Qc2 {[%emt 0:00:58]} Ba6 {[%emt 0:31:13]} 18. Qa4 {[%emt 0:00:43]} Bb5 {[%emt 0:00:04]} 19. Qc2 {[%emt 0:00:07]} Re8 {[%emt 0:02:54]} 20. a4 {[%emt 0:04:24]} Ba6 {[%emt 0:00:30]} 21. a5 {[%emt 0:05:50]} Nf8 {[%emt 0:12:57]} 22. Bf1 {[%emt 0:05:33]} Bb4 {[%emt 0:08:17]} 23. Ra4 {[%emt 0:14:00]} Bxc3 {[%emt 0:15:32]} 24. Qxc3 {[%emt 0:00:11]} c5 {[%emt 0:00:23]} 25. Nxc4 {[%emt 0:10:38]} Qd7 {[%emt 0:09:23]} 26. Qa1 {[%emt 0:02:35]} Bxc4 {[%emt 0:07:03]} 27. Rxc4 {[%emt 0:00:02]} cxd4 {[%emt 0:02:34]} 28. Rxc8 {[%emt 0:06:01]} Qxc8 {[%emt 0:02:20]} 29. Qxd4 {[%emt 0:01:42]} Ng6 {[%emt 0:01:47]} 30. Be3 {[%emt 0:03:15]} e5 {[%emt 0:01:42]} 31. Qxa7 {[%emt 0:02:11]} Qg4 {[%emt 0:00:10]} 32. Rb1 {[%emt 0:02:04]} Nh4 {[%emt 0:00:04]} 33. Qb7 {[%emt 0:03:18]} Nf3+ {[%emt 0:06:44]} 34. Kh1 {[%emt 0:00:04]} Qh5 {[%emt 0:00:31]} 35. h3 {[%emt 0:01:04]} Ng4 {[%emt 0:01:54]} 36. Bc5 {[%emt 0:03:52]} Re6 {[%emt 0:00:00]} 37. a6 {[%emt 0:02:42]} Nfh2 {[%emt 0:00:00]} 38. a7 {[%emt 0:00:30]} Nxf1 {[%emt 0:02:23]} 39. a8=Q+ {[%emt 0:02:38]} Kh7 {[%emt 0:00:00]} 40. Kg2 {[%emt 0:02:11]} Nge3+ {[%emt 0:00:00]} 41. Kg1 {[%emt 0:30:11]} Qf3 {[%emt 0:02:42]} 42. Bxe3 {[%emt 0:10:48]} Nxe3 {[%emt 0:00:50]} 43. fxe3 {[%emt 0:00:49]} Qxg3+ {[%emt 0:00:32]} 44. Kf1 {[%emt 0:01:47]} Qf3+ {[%emt 0:00:26]} 45. Ke1 {[%emt 0:00:08]} Qxe3+ {[%emt 0:00:05]} 46. Kd1 {[%emt 0:00:20]} Rg6 {[%emt 0:05:27]} 47. Qh8+ {[%emt 0:07:20]} Kxh8 {[%emt 0:00:09]} 48. Qc8+ Kh7 {[%emt 0:00:07]} 49. Qf5 {[%emt 0:00:02]} Qg5 {[%emt 0:02:36]} 50. Rb5 {[%emt 0:00:48]} Qxf5 51. exf5 {[%emt 0:00:01]} Rd6+ {[%emt 0:02:13]} 52. Ke2 {[%emt 0:00:17]} f6 {[%emt 0:00:03]} 53. Rb4 {[%emt 0:02:57]} Rd4 {[%emt 0:05:47]} 54. Rxd4 {[%emt 0:00:11]} exd4 {[%emt 0:00:02]} 55. Kd3 {[%emt 0:00:01]} g6 {[%emt 0:00:09]} 56. Kxd4 {[%emt 0:00:18]} gxf5 {[%emt 0:00:05]} 57. Ke3 {[%emt 0:00:01]} Kg7 {[%emt 0:00:11]} 58. Kf3 {[%emt 0:01:31]} Kf7 {[%emt 0:00:03]} 0-1